fUST/lending_fUST_20240413
["ID","MTS","AMOUNT","RATE_DAILY","PERIOD"]
[322453347,1713021039495,-500.0,0.00032876,7]
[322453349,1713021039504,-500.0,0.00032876,7]
[322453351,1713021039513,-508.62523054,0.00032876,7]
[322453353,1713021039528,-500.0,0.00032876,7]
[322453355,1713021039537,-500.0,0.00032876,7]
[322453357,1713021039546,-500.0,0.00032876,7]
[322453359,1713021039556,-501.69910423,0.00032876,7]
[322453361,1713021039569,-500.0,0.00032876,7]
[322453363,1713021039579,-502.83471538,0.00032876,7]
[322453366,1713021039588,-500.0,0.00032876,7]
[322453369,1713021039599,-500.0,0.00032876,7]
[322453370,1713021039609,-500.0,0.00032876,7]
[322453373,1713021039619,-500.70333119,0.00032876,7]
[322453374,1713021039628,-500.0,0.00032876,7]
[322453376,1713021039637,-500.0,0.00032876,7]
[322453378,1713021039649,-501.31569427,0.00032876,7]
[322453381,1713021039659,-500.0,0.00032876,7]
[322453383,1713021039669,-500.0,0.00032876,7]
[322453385,1713021039679,-500.0,0.00032876,7]
[322453387,1713021039689,-500.0,0.00032876,7]
[322453389,1713021039698,-500.0,0.00032876,7]
[322453391,1713021039708,-500.0,0.00032876,7]
[322453393,1713021039717,-500.0,0.00032876,7]
[322453395,1713021039727,-500.0,0.00032876,7]
[322453397,1713021039736,-502.63757926,0.00032876,7]
[322453399,1713021039745,-500.0,0.00032876,7]
[322453400,1713021039755,-502.09780536,0.00032876,7]
[322453403,1713021039766,-500.69347497,0.00032876,7]
[322453405,1713021039775,-579.86036251,0.00032876,7]
[322453407,1713021039787,-500.0,0.00032876,7]
[322453409,1713021039796,-500.0,0.00032876,7]
[322453411,1713021039805,-500.0,0.00032876,7]
[322453413,1713021039814,-231.07620024,0.00032876,7]
[322453415,1713021039824,-500.0,0.00032876,7]
[322453417,1713021039833,-500.0,0.00032876,7]
[322453419,1713021039842,-500.0,0.00032876,7]
[322453421,1713021039851,-517.58141715,0.00032876,7]
[322453423,1713021039860,-500.0,0.00032876,7]
[322453425,1713021039869,-503.56911168,0.00032876,7]
[322453426,1713021039879,-501.65200182,0.00032876,7]
[322453428,1713021039888,-403.0062088,0.00032876,7]
[322453430,1713021039898,-500.0,0.00032876,7]
[322453433,1713021039908,-500.0,0.00032876,7]
[322453435,1713021039917,-500.0,0.00032876,7]
[322453436,1713021039926,-500.0,0.00032876,7]
[322453438,1713021039935,-500.33082873,0.00032876,7]
[322453440,1713021039944,-500.0,0.00032876,7]
[322453442,1713021039954,-500.0,0.00032876,7]
[322453445,1713021039963,-1111.14,0.00032876,2]
[322453446,1713021039972,-500.0,0.00032876,14]
[322453448,1713021039982,-500.0,0.00032876,7]
[322453450,1713021039991,-500.0,0.00032876,7]
[322453452,1713021040001,-500.0,0.00032876,7]
[322453454,1713021040010,-562.09567275,0.00032876,7]
[322453457,1713021040019,-500.0,0.00032876,7]
[322453459,1713021040031,-500.0,0.00032876,7]
[322453460,1713021040041,-503.49918991,0.00032876,7]
[322453461,1713021040051,-502.35220558,0.00032876,7]
[322453462,1713021040061,-500.0,0.00032876,7]
[322453463,1713021040070,-505.95434018,0.00032876,7]
[322453464,1713021040080,-500.0,0.00032876,7]
[322453465,1713021040089,-500.0,0.00032876,7]
[322453466,1713021040098,-500.0,0.00032876,7]
[322453467,1713021040106,-500.0,0.00032876,7]
[322453468,1713021040115,-502.15700964,0.00032876,7]
[322453469,1713021040124,-500.0,0.00032876,7]
[322453470,1713021040133,-500.0,0.00032876,7]
[322453471,1713021040142,-383.59741185,0.00032876,7]
[322453472,1713021040151,-500.0,0.00032876,7]
[322453473,1713021040160,-500.0,0.00032876,7]
[322453474,1713021040169,-501.09961894,0.00032876,2]
[322453475,1713021040178,-504.16077056,0.00032876,7]
[322453476,1713021040187,-500.0,0.00032876,7]
[322453477,1713021040196,-500.0,0.00032876,7]
[322453478,1713021040204,-500.0,0.00032876,7]
[322453479,1713021040213,-500.0,0.00032876,7]
[322453480,1713021040222,-500.0,0.00032876,7]
[322453481,1713021040231,-500.0,0.00032876,7]
[322453482,1713021040240,-500.0,0.00032876,7]
[322453483,1713021040249,-500.0,0.00032876,7]
[322453484,1713021040257,-500.0,0.00032876,7]
[322453485,1713021040266,-500.0,0.00032876,7]
[322453486,1713021040275,-500.0,0.00032876,7]
[322453487,1713021040287,-500.0,0.00032876,7]
[322453488,1713021040296,-500.0,0.00032876,7]
[322453489,1713021040305,-500.0,0.00032876,7]
[322453490,1713021040314,-500.0,0.00032876,7]
[322453491,1713021040322,-500.0,0.00032876,7]
[322453492,1713021040331,-505.71973689,0.00032876,7]
[322453493,1713021040340,-500.0,0.00032876,7]
[322453494,1713021040350,-500.0,0.00032876,7]
[322453495,1713021040359,-500.0,0.00032876,7]
[322453496,1713021040368,-500.0,0.00032876,7]
[322453497,1713021040377,-500.0,0.00032876,7]
[322453498,1713021040386,-500.0,0.00032876,7]
[322453499,1713021040395,-500.0,0.00032876,7]
[322453501,1713021040405,-365.15564107,0.00032876,7]
[322453503,1713021040414,-500.0,0.00032876,7]
[322453505,1713021040424,-500.0,0.00032876,7]
[322453507,1713021040433,-502.33900205,0.00032876,7]
[322453509,1713021040442,-500.0,0.00032876,7]
[322453511,1713021040452,-503.25069039,0.00032876,7]
[322453512,1713021040461,-500.0,0.00032876,7]
[322453513,1713021040472,-500.0,0.00032876,7]
[322453514,1713021040492,-500.0,0.00032876,7]
[322453515,1713021040503,-417.90975819,0.00032876,7]
[322453516,1713021040514,-500.0,0.00032876,7]
[322453517,1713021040527,-500.0,0.00032876,7]
[322453518,1713021040540,-500.0,0.00032876,7]
[322453519,1713021040550,-500.0,0.00032876,7]
[322453520,1713021040561,-500.0,0.00032876,7]
[322453521,1713021040571,-500.0,0.00032876,7]
[322453522,1713021040582,-500.0,0.00032876,7]
[322453523,1713021040593,-500.0,0.00032876,7]
[322453524,1713021040605,-500.0,0.00032876,7]
[322453525,1713021040615,-500.0,0.00032876,7]
[322453526,1713021040625,-500.0,0.00032876,7]
[322453527,1713021040634,-500.0,0.00032876,7]
[322453528,1713021040644,-500.0,0.00032876,7]
[322453529,1713021040653,-500.0,0.00032876,7]
[322453530,1713021040663,-500.0,0.00032876,7]
[322453531,1713021040672,-500.0,0.00032876,7]
[322453532,1713021040683,-644.79868849,0.00032876,7]
[322453533,1713021040693,-500.0,0.00032876,7]
[322453534,1713021040702,-560.76,0.00032876,7]
[322453535,1713021040715,-500.82768302,0.00032876,7]
[322453536,1713021040725,-500.0,0.00032876,7]
[322453537,1713021040734,-500.0,0.00032876,7]
[322453538,1713021040746,-500.0,0.00032876,7]
[322453539,1713021040756,-500.0,0.00032876,7]
[322453540,1713021040765,-500.0,0.00032876,7]
[322453541,1713021040775,-501.37377778,0.00032876,7]
[322453543,1713021040787,-1012.02014625,0.00032876,7]
[322453544,1713021040796,-1665.38,0.00032876,7]
[322453545,1713021040805,-501.66574896,0.00032876,7]
[322453546,1713021040815,-501.51977991,0.00032876,7]
[322453547,1713021040824,-214.81493705,0.00032876,7]
[322453548,1713021040833,-500.0,0.00032876,7]
[322453549,1713021040843,-300.0,0.00032876,7]
[322453550,1713021040853,-375.99736236,0.00032876,7]
[322453551,1713021040862,-563.04684633,0.00032876,7]
[322453552,1713021040871,-689.04,0.00032876,7]
[322453553,1713021040881,-500.0,0.00032876,7]
[322453554,1713021040891,-500.0,0.00032876,7]
[322453555,1713021040900,-620.05184602,0.00032876,7]
[322453556,1713021040910,-500.0,0.00032876,7]
[322453557,1713021040919,-500.59272829,0.00032876,7]
[322453558,1713021040929,-500.0,0.00032876,7]
[322453559,1713021040939,-500.0,0.00032876,7]
[322453560,1713021040948,-500.0,0.00032876,7]
[322453561,1713021040958,-502.23498175,0.00032876,7]
[322453562,1713021040968,-500.0,0.00032876,7]
[322453563,1713021040977,-500.0,0.00032876,7]
[322453564,1713021040986,-500.0,0.00032876,7]
[322453565,1713021040996,-386.42816611,0.00032876,7]
[322453566,1713021041006,-517.7182287,0.00032876,7]
[322453567,1713021041015,-515.95723654,0.00032876,7]
[322453568,1713021041025,-561.7647371,0.00032876,7]
[322453569,1713021041038,-500.0,0.00032876,7]
[322453570,1713021041048,-488.13668854,0.00032876,7]
[322453571,1713021041058,-501.56647193,0.00032876,7]
[322453572,1713021041068,-500.0,0.00032876,7]
[322453573,1713021041077,-500.0,0.00032876,7]
[322453574,1713021041086,-500.0,0.00032876,7]
[322453575,1713021041096,-500.0,0.00032876,7]
[322453576,1713021041106,-500.0,0.00032876,7]
[322453578,1713021041116,-500.0,0.00032876,7]
[322453580,1713021041126,-488.00298307,0.00032876,7]
[322453581,1713021041136,-504.41807224,0.00032876,7]
[322453582,1713021041146,-500.0,0.00032876,7]
[322453583,1713021041155,-500.0,0.00032876,7]
[322453584,1713021041165,-500.0,0.00032876,7]
[322453585,1713021041175,-500.0,0.00032876,7]
[322453586,1713021041184,-189.81278385,0.00032876,7]
[322453587,1713021041193,-500.0,0.00032876,7]
[322453588,1713021041206,-500.0,0.00032876,7]
[322453589,1713021041216,-500.0,0.00032876,7]
[322453590,1713021041225,-500.0,0.00032876,7]
[322453591,1713021041235,-1250.43,0.00032876,7]
[322453592,1713021041245,-500.0,0.00032876,7]
[322453593,1713021041255,-906.99,0.00032876,7]
[322453594,1713021041265,-506.27057789,0.00032876,7]
[322453595,1713021041276,-501.72219097,0.00032876,7]
[322453596,1713021041287,-500.0,0.00032876,7]
[322453597,1713021041296,-374.82633246,0.00032876,7]
[322453598,1713021041305,-500.0,0.00032876,7]
[322453599,1713021041315,-500.0,0.00032876,7]
[322453600,1713021041324,-500.0,0.00032876,7]
[322453601,1713021041334,-500.0,0.00032876,7]
[322453602,1713021041343,-154.87609912,0.00032876,7]
[322453603,1713021041353,-500.0,0.00032876,7]
[322453604,1713021041363,-501.94047766,0.00032876,7]
[322453605,1713021041372,-500.0,0.00032876,7]
[322453606,1713021041382,-500.0,0.00032876,7]
[322453607,1713021041392,-500.0,0.00032876,7]
[322453608,1713021041402,-2838.04,0.00032876,7]
[322453609,1713021041412,-805.93,0.00032876,7]
[322453610,1713021041421,-502.53582593,0.00032876,7]
[322453611,1713021041431,-500.0,0.00032876,7]
[322453612,1713021041440,-500.65378748,0.00032876,7]
[322453613,1713021041450,-500.0,0.00032876,7]
[322453614,1713021041459,-537.43813191,0.00032876,7]
[322453615,1713021041469,-500.0,0.00032876,7]
[322453616,1713021041478,-500.0,0.00032876,7]
[322453617,1713021041488,-501.40871073,0.00032876,7]
[322453618,1713021041497,-500.0,0.00032876,7]
[322453619,1713021041642,-500.0,0.00032876,7]
[322453620,1713021041651,-500.0,0.00032876,7]
[322453621,1713021041661,-500.0,0.00032876,7]
[322453622,1713021041671,-151.0,0.00032876,7]
[322453623,1713021041680,-500.0,0.00032876,7]
[322453624,1713021041690,-500.0,0.00032876,7]
[322453625,1713021041699,-500.0,0.00032876,7]
[322453626,1713021041709,-500.0,0.00032876,7]
[322453627,1713021041718,-747.46,0.00032876,7]
[322453628,1713021041728,-500.0,0.00032876,7]
[322453629,1713021041737,-500.0,0.00032876,7]
[322453630,1713021041746,-500.0,0.00032876,7]
[322453631,1713021041755,-500.0,0.00032876,7]
[322453632,1713021041765,-500.0,0.00032876,7]
[322453633,1713021041775,-2195.85,0.00032876,7]
[322453634,1713021041786,-500.0,0.00032876,7]
[322453635,1713021041795,-309.73189997,0.00032876,7]
[322453636,1713021041804,-501.32346255,0.00032876,7]
[322453637,1713021041814,-561.14403191,0.00032876,7]
[322453638,1713021041824,-500.0,0.00032876,7]
[322453639,1713021041833,-975.55,0.00032876,7]
[322453640,1713021041844,-248.29776842,0.00032876,7]
[322453641,1713021041853,-1606.69,0.00032876,7]
[322453642,1713021041863,-500.0,0.00032876,7]
[322453643,1713021041874,-2587.14,0.00032876,7]
[322453644,1713021041883,-552.0,0.00032876,7]
[322453645,1713021041893,-500.0,0.00032876,7]
[322453646,1713021041903,-500.0,0.00032876,7]
[322453647,1713021041912,-500.0,0.00032876,7]
[322453648,1713021041922,-500.0,0.00032876,7]
[322453649,1713021041931,-501.72,0.00032876,7]
[322453650,1713021041941,-1746.47,0.00032876,7]
[322453651,1713021041951,-938.96,0.00032876,7]
[322453652,1713021041960,-978.49,0.00032876,7]
[322453653,1713021041970,-502.32186539,0.00032876,7]
[322453654,1713021041979,-156.49808185,0.00032876,7]
[322453655,1713021041989,-500.0,0.00032876,7]
[322453656,1713021041998,-502.10542521,0.00032876,7]
[322453657,1713021042008,-500.0,0.00032876,7]
[322453659,1713021042017,-500.0,0.00032876,7]
[322453660,1713021042027,-4290.86,0.00032876,7]
[322453661,1713021042038,-345.51279381,0.00032876,7]
[322453662,1713021042047,-500.0,0.00032876,7]
[322453663,1713021042056,-500.0,0.00032876,7]
[322453664,1713021042065,-500.0,0.00032876,7]
[322453665,1713021042075,-500.0,0.00032876,7]
[322453666,1713021042085,-500.0,0.00032876,7]
[322453667,1713021042095,-500.0,0.00032876,7]
[322453668,1713021042105,-500.0,0.00032876,7]
[322453669,1713021042115,-618.33,0.00032876,7]
[322453670,1713021042124,-500.0,0.00032876,7]
[322453671,1713021042134,-500.78951343,0.00032876,7]
[322453672,1713021042143,-1983.67,0.00032876,7]
[322453673,1713021042153,-820.41,0.00032876,7]
[322453674,1713021042162,-500.0,0.00032876,7]
[322453675,1713021042172,-500.0,0.00032876,7]
[322453676,1713021042182,-500.41,0.00032876,7]
[322453677,1713021042192,-500.0,0.00032876,7]
[322453678,1713021042202,-500.0,0.00032876,7]
[322453679,1713021042212,-500.0,0.00032876,7]
[322453680,1713021042222,-500.0,0.00032876,7]
[322453681,1713021042231,-500.0,0.00032876,7]
[322453682,1713021042241,-500.0,0.00032876,7]
[322453683,1713021042251,-500.0,0.00032876,7]
[322453684,1713021042261,-500.0,0.00032876,7]
[322453685,1713021042270,-500.0,0.00032876,7]
[322453686,1713021042279,-500.0,0.00032876,7]
[322453687,1713021042290,-169.64659078,0.00032876,7]
[322453688,1713021042299,-500.0,0.00032876,7]
[322453689,1713021042309,-155.72068848,0.00032876,7]
[322453690,1713021042318,-627.0,0.00032876,7]
[322453691,1713021042328,-500.0,0.00032876,7]
[322453692,1713021042337,-500.0,0.00032876,7]
[322453693,1713021042346,-500.0,0.00032876,7]
[322453694,1713021042355,-500.0,0.00032876,7]
[322453695,1713021042365,-305.78899216,0.00032876,7]
[322453696,1713021042374,-715.98,0.00032876,7]
[322453697,1713021042383,-500.0,0.00032876,7]
[322453698,1713021042392,-500.0,0.00032876,7]
[322453699,1713021042402,-502.23567579,0.00032876,7]
[322453700,1713021042411,-500.0,0.00032876,7]
[322453701,1713021042420,-559.4,0.00032876,7]
[322453702,1713021042429,-500.0,0.00032876,7]
[322453703,1713021042438,-500.0,0.00032876,7]
[322453705,1713021042448,-500.0,0.00032876,7]
[322453706,1713021042457,-500.33287522,0.00032876,7]
[322453707,1713021042466,-505.28751995,0.00032876,7]
[322453708,1713021042475,-1804.56,0.00032876,7]
[322453709,1713021042484,-500.0,0.00032876,7]
[322453710,1713021042494,-500.0,0.00032876,7]
[322453711,1713021042503,-500.0,0.00032876,7]
[322453712,1713021042516,-186.98402372,0.00032876,7]
[322453713,1713021042525,-500.0,0.00032876,7]
[322453714,1713021042535,-500.0,0.00032876,7]
[322453716,1713021042544,-500.0,0.00032876,7]
[322453718,1713021042554,-500.0,0.00032876,7]
[322453719,1713021042563,-500.0,0.00032876,7]
[322453721,1713021042573,-1607.49,0.00032876,7]
[322453722,1713021042582,-745.18,0.00032876,7]
[322453723,1713021042591,-500.0,0.00032876,7]
[322453724,1713021042602,-500.0,0.00032876,7]
[322453725,1713021042611,-500.0,0.00032876,7]
[322453726,1713021042621,-507.93799496,0.00032876,7]
[322453727,1713021042630,-500.0,0.00032876,7]
[322453728,1713021042639,-259.00466111,0.00032876,7]
[322453729,1713021042648,-750.95,0.00032876,7]
[322453730,1713021042658,-500.0,0.00032876,7]
[322453731,1713021042667,-500.0,0.00032876,7]
[322453732,1713021042677,-500.0,0.00032876,7]
[322453733,1713021042687,-500.0,0.00032876,7]
[322453734,1713021042696,-500.0,0.00032876,7]
[322453735,1713021042706,-500.0,0.00032876,7]
[322453736,1713021042715,-500.0,0.00032876,7]
[322453737,1713021042724,-500.0,0.00032876,7]
[322453738,1713021042734,-500.0,0.00032876,7]
[322453739,1713021042743,-500.0,0.00032876,7]
[322453740,1713021042753,-500.0,0.00032876,7]
[322453741,1713021042762,-712.11,0.00032876,7]
[322453742,1713021042771,-500.0,0.00032876,7]
[322453743,1713021042780,-529.87,0.00032876,7]
[322453744,1713021042792,-500.0,0.00032876,7]
[322453745,1713021042802,-500.0,0.00032876,7]
[322453747,1713021042812,-165.52530305,0.00032876,7]
[322453748,1713021042821,-500.0,0.00032876,7]
[322453750,1713021042831,-260.33821339,0.00032876,7]
[322453751,1713021042840,-500.0,0.00032876,7]
[322453752,1713021042850,-500.0,0.00032876,7]
[322453753,1713021042860,-500.0,0.00032876,7]
[322453754,1713021042869,-944.58,0.00032876,7]
[322453755,1713021042879,-500.0,0.00032876,7]
[322453756,1713021042888,-500.0,0.00032876,7]
[322453757,1713021042898,-500.0,0.00032876,7]
[322453758,1713021042908,-500.0,0.00032876,7]
[322453759,1713021042917,-500.0,0.00032876,7]
[322453760,1713021042927,-500.0,0.00032876,7]
[322453761,1713021042936,-7248.39,0.00032876,7]
[322453762,1713021042946,-500.0,0.00032876,7]
[322453763,1713021042955,-1468.08,0.00032876,7]
[322453764,1713021042965,-500.0,0.00032876,7]
[322453765,1713021042975,-500.0,0.00032876,7]
[322453766,1713021042985,-500.0,0.00032876,7]
[322453767,1713021042995,-500.0,0.00032876,7]
[322453768,1713021043005,-500.0,0.00032876,7]
[322453769,1713021043015,-500.79208165,0.00032876,7]
[322453770,1713021043024,-460.94755623,0.00032876,7]
[322453771,1713021043034,-500.0,0.00032876,7]
[322453772,1713021043044,-980.84,0.00032876,7]
[322453774,1713021043053,-500.0,0.00032876,7]
[322453777,1713021043064,-500.70531605,0.00032876,7]
[322453778,1713021043074,-23906.93,0.00032876,7]
[322453779,1713021043083,-500.0,0.00032876,7]
[322453780,1713021043093,-500.0,0.00032876,7]
[322453781,1713021043102,-500.0,0.00032876,7]
[322453782,1713021043112,-502.85773656,0.00032876,7]
[322453783,1713021043122,-500.0,0.00032876,7]
[322453784,1713021043131,-500.0,0.00032876,7]
[322453785,1713021043141,-500.0,0.00032876,7]
[322453786,1713021043150,-500.0,0.00032876,7]
[322453787,1713021043160,-1876.9,0.00032876,7]
[322453788,1713021043170,-171.88794,0.00032929,2]
[322453789,1713021043180,-218.0,0.00033,2]
[322453790,1713021043189,-153.0,0.00033014,2]
[322453791,1713021043199,-153.0,0.00033014,2]
[322453792,1713021043208,-307.4409899,0.00033014,2]
[322453793,1713021043217,-153.0,0.00033014,2]
[322453794,1713021043226,-153.0,0.00033014,2]
[322453795,1713021043235,-153.0,0.00033014,2]
[322453796,1713021043244,-153.0,0.00033014,2]
[322453797,1713021043254,-153.0,0.00033014,2]
[322453798,1713021043263,-153.0,0.00033014,2]
[322453799,1713021043272,-153.0,0.00033014,2]
[322453800,1713021043283,-153.0,0.00033014,2]
[322453801,1713021043293,-153.0,0.00033014,2]
[322453802,1713021043302,-587.0,0.00033112,2]
[322453803,1713021043311,-500.0,0.00033149,7]
[322453804,1713021043321,-500.0,0.00033149,7]
[322453805,1713021043330,-500.0,0.00033149,7]
[322453806,1713021043339,-500.0,0.00033149,7]
[322453807,1713021043349,-377.37248519,0.0003315,7]
[322453808,1713021043358,-500.0,0.0003315,7]
[322453809,1713021043367,-500.0,0.0003315,7]
[322453810,1713021043377,-500.0,0.0003315,7]
[322453811,1713021043386,-500.0,0.0003315,7]
[322453812,1713021043396,-500.0,0.0003315,7]
[322453813,1713021043405,-298.81347776,0.0003315,7]
[322453814,1713021043413,-559.91195239,0.0003315,7]
[322453815,1713021043423,-500.0,0.0003315,7]
[322453816,1713021043432,-500.0,0.0003315,7]
[322453817,1713021043442,-500.0,0.0003315,7]
[322453818,1713021043451,-500.0,0.0003315,7]
[322453819,1713021043460,-500.0,0.0003315,7]
[322453820,1713021043469,-500.0,0.0003315,7]
[322453821,1713021043478,-1111.14,0.0003315,2]
[322453822,1713021043487,-502.85541641,0.0003315,14]
[322453823,1713021043496,-500.0,0.0003315,7]
[322453824,1713021043505,-500.0,0.0003315,7]
[322453825,1713021043515,-554.51550462,0.0003315,7]
[322453826,1713021043528,-500.0,0.0003315,7]
[322453827,1713021043540,-500.0,0.0003315,7]
[322453828,1713021043549,-500.0,0.0003315,7]
[322453829,1713021043559,-500.0,0.0003315,7]
[322453830,1713021043568,-500.0,0.0003315,7]
[322453831,1713021043577,-500.0,0.0003315,7]
[322453832,1713021043587,-500.0,0.0003315,7]
[322453833,1713021043597,-589.66921019,0.0003315,7]
[322453834,1713021043606,-500.0,0.0003315,7]
[322453835,1713021043616,-500.0,0.0003315,7]
[322453836,1713021043625,-500.0,0.0003315,7]
[322453837,1713021043634,-500.0,0.0003315,7]
[322453838,1713021043645,-293.17361878,0.0003315,7]
[322453839,1713021043654,-164.23039283,0.0003315,7]
[322453840,1713021043663,-500.0,0.0003315,7]
[322453841,1713021043673,-536.38619148,0.0003315,7]
[322453842,1713021043682,-500.0,0.0003315,7]
[322453843,1713021043691,-500.0,0.0003315,7]
[322453844,1713021043700,-500.0,0.0003315,7]
[322453845,1713021043709,-481.75517932,0.0003315,7]
[322453846,1713021043717,-500.0,0.0003315,7]
[322453847,1713021043726,-500.0,0.0003315,7]
[322453848,1713021043735,-510.44738088,0.0003315,7]
[322453849,1713021043744,-500.0,0.0003315,7]
[322453850,1713021043754,-500.0,0.0003315,7]
[322453851,1713021043763,-500.0,0.0003315,7]
[322453852,1713021043773,-560.76,0.0003315,7]
[322453853,1713021043782,-329.47011998,0.0003315,7]
[322453854,1713021043792,-500.0,0.0003315,7]
[322453855,1713021043801,-1665.38,0.0003315,7]
[322453856,1713021043810,-689.04,0.0003315,7]
[322453857,1713021043820,-503.88828186,0.0003315,7]
[322453858,1713021043829,-500.0,0.0003315,7]
[322453859,1713021043839,-539.79423866,0.0003315,7]
[322453860,1713021043848,-500.0,0.0003315,7]
[322453861,1713021043858,-500.0,0.0003315,7]
[322453862,1713021043867,-500.0,0.0003315,7]
[322453863,1713021043876,-500.0,0.0003315,7]
[322453864,1713021043886,-421.52702997,0.0003315,7]
[322453865,1713021043895,-500.0,0.0003315,7]
[322453866,1713021043905,-500.0,0.0003315,7]
[322453867,1713021043914,-500.0,0.0003315,7]
[322453868,1713021043923,-1250.43,0.0003315,7]
[322453869,1713021043932,-906.99,0.0003315,7]
[322453870,1713021043941,-500.0,0.0003315,7]
[322453871,1713021043950,-500.0,0.0003315,7]
[322453872,1713021043959,-500.0,0.0003315,7]
[322453873,1713021043968,-629.26086942,0.0003315,7]
[322453874,1713021043979,-500.0,0.0003315,7]
[322453875,1713021043988,-501.17687522,0.0003315,7]
[322453876,1713021043998,-500.0,0.0003315,7]
[322453877,1713021044007,-500.0,0.0003315,7]
[322453878,1713021044016,-2838.04,0.0003315,7]
[322453879,1713021044025,-805.93,0.0003315,7]
[322453880,1713021044036,-500.0,0.0003315,7]
[322453881,1713021044046,-500.0,0.0003315,7]
[322453882,1713021044055,-500.0,0.0003315,7]
[322453883,1713021044064,-499.30594782,0.0003315,7]
[322453884,1713021044074,-158.81891326,0.0003315,7]
[322453885,1713021044083,-500.0,0.0003315,7]
[322453886,1713021044092,-747.46,0.0003315,7]
[322453887,1713021044101,-500.0,0.0003315,7]
[322453888,1713021044110,-500.0,0.0003315,7]
[322453889,1713021044119,-2195.85,0.0003315,7]
[322453890,1713021044129,-975.55,0.0003315,7]
[322453891,1713021044138,-500.0,0.0003315,7]
[322453892,1713021044149,-1606.69,0.0003315,7]
[322453893,1713021044158,-500.0,0.0003315,7]
[322453894,1713021044167,-2587.14,0.0003315,7]
[322453895,1713021044176,-552.0,0.0003315,7]
[322453896,1713021044185,-500.0,0.0003315,7]
[322453897,1713021044195,-504.6097672,0.0003315,7]
[322453898,1713021044204,-500.0,0.0003315,7]
[322453899,1713021044213,-500.0,0.0003315,7]
[322453900,1713021044222,-1746.47,0.0003315,7]
[322453901,1713021044232,-501.72,0.0003315,7]
[322453902,1713021044241,-938.96,0.0003315,7]
[322453903,1713021044250,-978.49,0.0003315,7]
[322453904,1713021044259,-500.0,0.0003315,7]
[322453905,1713021044268,-500.0,0.0003315,7]
[322453906,1713021044277,-4290.86,0.0003315,7]
[322453907,1713021044287,-500.0,0.0003315,7]
[322453908,1713021044295,-151.0,0.0003315,2]
[322453909,1713021044304,-618.33,0.0003315,7]
[322453910,1713021044313,-500.0,0.0003315,7]
[322453911,1713021044322,-1983.67,0.0003315,7]
[322453912,1713021044331,-820.41,0.0003315,7]
[322453913,1713021044340,-500.0,0.0003315,7]
[322453914,1713021044444,-500.0,0.0003315,7]
[322453915,1713021044453,-500.41,0.0003315,7]
[322453916,1713021044462,-500.0,0.0003315,7]
[322453917,1713021044472,-500.0,0.0003315,7]
[322453918,1713021044481,-500.0,0.0003315,7]
[322453919,1713021044490,-500.0,0.0003315,7]
[322453920,1713021044499,-500.0,0.0003315,7]
[322453921,1713021044508,-500.0,0.0003315,7]
[322453922,1713021044518,-500.0,0.0003315,7]